Cogmind - Beta 16 *** ADVENTURER MODE // 2025.10.24 @ 22:58:59 Player: elysium Result: Destroyed by G-50 Soldier with Heavy Laser Performance ------------- Evolutions (4) 2000 Regions Visited (7) 1400 Robots Destroyed (80) 400 Value Destroyed (2993) 2993 Prototype IDs (6) 120 Alien Tech Used (0) 0 Bonus (585) 585 TOTAL SCORE: 7498 Bonus ------- Follower Combat Kills 614 Friendly Fire -29 Cogmind --------- Core Integrity 0/850 Matter 275/300 Energy 98/100 System Corruption 3% Temperature Cool (18) Movement Core (50) Location -6/Factory Parts ------- > --- POWER (1) -------- (None) > --- PROPULSION (3) --- (None) > --- UTILITY (7) ------ Advanced Heat Sink Enhanced Optical Array Advanced Terrain Scan Processor Hacking Suite > --- WEAPON (4) ------- (None) > --- INVENTORY (5) ---- Improved Heat Sink Hardened Light Armor Plating Hardened Heavy Armor Plating Ion Burst Cannon Peak State ------------ > --- POWER ------------ Improved Deuterium Engine > --- PROPULSION ------- Armored Treads Advanced Treads Improved Medium Treads > --- UTILITY ---------- Improved Heat Sink Huge Storage Unit Enhanced Optical Array Improved Sensor Array Terrain Scanner Advanced Terrain Scan Processor Hacking Suite > --- WEAPON ----------- Gatling Laser Improved Spread Laser Flak Gun Makeshift Axe > --- INVENTORY -------- Deuterium Engine Improved Deuterium Engine Carbon-fiber Leg Improved Heat Sink Improved Heat Sink Advanced Heat Sink Medium Storage Unit Advanced Terrain Scan Processor Target Analyzer Hardened Heavy Armor Plating Shock Rifle Shock Rifle Heavy EM Shotgun Gatling Laser EM Pulse Cannon Heavy Ion Cannon Ion Burst Cannon High-powered Shotgun Magnetic Acceleration Cannon Improved Proton Missile Launcher Remote Datajack [Rating: 60] Favorites ----------- Power Light Nuclear Core Engine Improved Deuterium Engine Power Core Light Nuclear Core Propulsion Light Treads Treads Light Treads Leg Aluminum Leg Hover Unit Airjet Flight Unit Cooled VTOL Module Utility Sensor Array Device Sensor Array Storage Medium Storage Unit Processor Advanced Terrain Scan Processor Hackware Hacking Suite Protection Light Armor Plating Weapon Makeshift Axe Energy Gun Gatling Laser Energy Cannon EM Pulse Cannon Ballistic Gun Assault Rifle Launcher Grenade Launcher Slashing Weapon Makeshift Axe Build | -11 -10 -10 -10 -8 -8 -7 -6 ------- Run | Yrd Mat Min Sub Mat Sto Fac Fac Slots Evolved 8 | . . . . 4 . 2 2 Power . | . . . . . . . . Propulsion 1 | . . . . 1 . . . Utility 5 | . . . . 2 . 1 2 Weapon 2 | . . . . 1 . 1 . Parts Attached 66 | 7 1 2 1 4 10 14 27 Power 8 | 1 . 1 . . 1 1 4 Engine 5 | 1 . . . . . 1 3 Core 3 | . . 1 . . 1 . 1 Reactor . | . . . . . . . . Propulsion 19 | 2 . 1 . 2 3 4 7 Treads 10 | . . . . . 3 2 5 Leg 7 | 2 . 1 . 2 . . 2 Wheel . | . . . . . . . . Hover 1 | . . . . . . 1 . Flight 1 | . . . . . . 1 . Utility 22 | 2 1 . . 1 5 2 11 Device 14 | 1 1 . . 1 3 1 7 Storage 3 | 1 . . . . 1 . 1 Processor 3 | . . . . . . 1 2 Hackware 1 | . . . . . . . 1 Protection 1 | . . . . . 1 . . Artifact . | . . . . . . . . Weapon 17 | 2 . . 1 1 1 7 5 Energy Gun 8 | . . . . . 1 4 3 Energy Cannon 2 | . . . . . . 1 1 Ballistic Gun 5 | 2 . . . . . 2 1 Ballistic Cannon . | . . . . . . . . Launcher 1 | . . . 1 . . . . Special Weapon . | . . . . . . . . Impact Weapon . | . . . . . . . . Slashing Weapon 1 | . . . . 1 . . . Piercing Weapon . | . . . . . . . . Special Melee Weapon . | . . . . . . . . Unidentified Prototypes 6 | . . . . . . 6 . Parts Lost 30 | . . . . . . 1 29 Power 3 | . . . . . . . 3 Propulsion 6 | . . . . . . . 6 Utility 8 | . . . . . . . 8 Weapon 13 | . . . . . . 1 12 Highest Loss Streak 8 | . . . . . . 1 8 To Critical Strikes . | . . . . . . . . Average Backups 10 | 4 5 8 8 6 9 9 13 Power 1 | . 1 1 1 1 1 1 1 Propulsion . | 1 2 1 1 . . . . Utility 2 | . . 1 2 1 2 2 3 Weapon 5 | 1 1 4 4 4 4 5 7 Tool/Special . | . . . . . . . . Unused Backups 25 | . . 4 1 . 7 3 10 Power 2 | . . . . . 1 . 1 Propulsion 5 | . . 2 . . 2 1 . Utility 8 | . . . . . 2 2 4 Weapon 9 | . . 2 1 . 2 . 4 Tool/Special 1 | . . . . . . . 1 Average Slot Usage (%) 95 | . 100 100 100 98 99 99 89 Engine 4 | . 14 13 . . . 2 5 Core 4 | . . . 14 9 9 4 . Treads 12 | . . . . . 13 22 14 Leg 9 | . 28 28 28 27 13 . 1 Device 18 | . 14 14 14 25 18 18 18 Storage 8 | . 14 14 14 9 9 6 5 Processor 5 | . . . . . . 6 11 Hackware 2 | . . . . . . . 5 Protection 2 | . . . . . 8 4 . Energy Gun 7 | . . . . . 4 8 12 Ballistic Gun 9 | . 28 28 21 17 4 6 3 Launcher 3 | . . . 6 5 9 6 . Slashing Weapon 5 | . . . . 4 8 7 5 Peak Build Rating 60 | 7 7 10 10 21 25 36 60 Average Rating 31 | 4 7 8 9 17 21 29 48 On Entrance 13 | . 7 7 10 10 21 20 36 Avg Prop Armor Cover (%) 7 | . . . . . . 6 8 Naked Turns . | . . . . . . . . Heaviest Build 109 | 13 13 15 16 21 34 37 109 Greatest Support 72 | 20 20 20 20 35 60 62 72 Greatest Overweight (x) 31 | 2 . . . . 1 6 31 Average Overweight (x) . | . . . . . . . . Largest Inventory Capacity 25 | 8 8 8 8 8 10 10 25 Average Capacity 12 | 7 8 8 8 8 9 9 17 Most Carried 23 | 8 8 8 8 8 10 10 23 Average Carried 10 | 4 5 7 7 6 9 9 14 Final Capacity 10 | 8 8 8 8 8 10 10 5 Final Carried 10 | 4 8 8 8 8 10 10 5 Class Distribution -------------------- 32% | Scavenger-Assassin 20% | Mutant 19% | Scavenger-Mutant 8% | Hacker-Skirmisher 7% | Scavenger-Skirmisher 7% | Hacker-Assassin 3% | Commander-Mutant Dominant Class ---------------- Mutant | -10/Materials Mutant | -10/Mines Mutant | -10/Subcaves Scavenger-Mutant | -8/Materials Scavenger-Mutant | -8/Storage Scavenger-Assassin | -7/Factory Scavenger-Assassin | -6/Factory Resources | -11 -10 -10 -10 -8 -8 -7 -6 ----------- Run | Yrd Mat Min Sub Mat Sto Fac Fac Matter Collected 1666 | 360 34 134 44 125 287 271 411 Remotely . | . . . . . . . . Salvage Created 3048 | 193 52 300 93 103 340 329 1638 Parts 159 | 9 9 13 3 7 23 19 76 Haulers Intercepted 1 | . . . . . 1 . . Recyclers Shooed 4 | . . . . . . . 4 Parts Field Recycled . | . . . . . . . . Retrieved Matter . | . . . . . . . . Parts Self-Destructed 5 | . . . 5 . . . . Prevented . | . . . . . . . . Parts Restored . | . . . . . . . . Kills | -11 -10 -10 -10 -8 -8 -7 -6 ------- Run | Yrd Mat Min Sub Mat Sto Fac Fac Combat Hostiles Destroyed 57 | . 3 5 3 2 8 9 27 Guns 40 | . 3 5 . 2 2 6 22 Cannons 1 | . . . . . . . 1 AOE 13 | . . . 3 . 6 3 1 Classes Destroyed 14 | 3 1 1 1 2 3 1 2 Worker 6 | 1 . . . . . . 5 Builder 4 | . . . . . 1 1 2 Tunneler 5 | 3 . . . . . . 2 Hauler 1 | . . . . . 1 . . Recycler 6 | 1 . 1 . . . 1 3 Drone 1 | . . . . . 1 . . Watcher 1 | . . . . . . . 1 Swarmer 11 | . 3 . . . . 7 1 Grunt 21 | . . 5 . . 4 . 12 Duelist 1 | . . . . . . . 1 Sentry 12 | . . . . 1 4 1 6 Hunter 3 | . . . . 1 . . 2 Programmer 6 | . . . . . . 1 5 Subdweller 3 | . . . 3 . . . . Best Kill Streak 8 | 3 3 2 3 1 3 6 8 Combat Bots Only 6 | . 3 2 3 1 3 5 6 Max Kills in Single Turn 3 | 1 1 1 3 1 2 2 3 Gunslinging . | . . . . . . . . Exploded 3 | . . . 3 . 2 2 1 Melee . | . . . . . . . . Uniques/NPCs Destroyed . | . . . . . . . . Combat | -11 -10 -10 -10 -8 -8 -7 -6 -------- Run | Yrd Mat Min Sub Mat Sto Fac Fac Hostile Shots Fired 490 | . 11 16 4 32 27 37 363 Missed 138 | . 5 5 1 6 5 12 104 Hits 352 | . 6 11 3 26 22 25 259 Melee 1 | . . . . . . . 1 Projectile 351 | . 6 11 3 26 22 25 258 Critical Strikes 10 | . . . . 2 . . 8 Part Disruptions 1 | . . . . . . . 1 Damage Taken 4696 | . 38 105 86 207 302 293 3665 Core 1020 | . 15 38 33 . 49 22 863 Absorbed by Shields . | . . . . . . . . Ignored by Resistances 1328 | . 12 32 23 59 85 85 1032 Regen/Repaired (Parts) 235 | . . . . . 21 . 214 Core Remaining (%) 88 | 100 . . 65 . 91 96 . Volleys Fired 150 | 15 4 19 5 12 14 14 67 Largest 3 | 2 2 2 2 2 2 3 3 Hottest 235 | 40 40 40 50 50 86 164 235 Shots Fired 340 | 30 8 38 9 24 26 32 173 Gun 316 | 30 8 38 8 23 14 29 166 Cannon 7 | . . . . . . . 7 Launcher 17 | . . . 1 1 12 3 . Special . | . . . . . . . . Kinetic 164 | 30 8 38 8 23 11 14 32 Thermal 147 | . . . . . 3 15 129 Explosive 17 | . . . 1 1 12 3 . Electromagnetic 12 | . . . . . . . 12 Robot Hit Streak 26 | 17 4 14 10 12 19 15 26 Robot Miss Streak 4 | 1 3 1 . 3 1 3 4 Penetration Max . | . . . . . . . . Secondary Targets 6 | . 1 . . . . . 5 Max Gunslinging Chain 1 | . 1 . . . . . 1 Shots Hit Robots 274 | 24 4 33 7 18 17 22 149 Core Hits 236 | 5 3 14 6 8 22 17 161 Critical Kills 2 | . . 1 . . . 1 . Critical Parts Destroyed . | . . . . . . . . Critical Strikes 10 | . . 1 . . 1 2 6 Burn 8 | . . . . . 1 1 6 Destroy 2 | . . 1 . . . 1 . Melee Attacks 27 | . . . . 1 13 2 11 Impact . | . . . . . . . . Slashing 27 | . . . . 1 13 2 11 Piercing . | . . . . . . . . Sneak Attacks 7 | . . . . . 2 . 5 Combat Hostiles . | . . . . . . . . Follow-up Attacks . | . . . . . . . . Damage Inflicted 7825 | 297 65 430 355 182 771 648 5077 Guns 5024 | 297 65 430 89 162 135 373 3473 Cannons 67 | . . . . . . . 67 Explosions 2162 | . . . 266 20 513 275 1088 Melee 572 | . . . . . 123 . 449 Ramming . | . . . . . . . . Kinetic 1971 | 297 65 430 89 162 91 212 625 Thermal 3345 | . . . . . 44 161 3140 Explosive 1830 | . . . 266 20 513 275 756 Electromagnetic 107 | . . . . . . . 107 Impact . | . . . . . . . . Slashing 572 | . . . . . 123 . 449 Piercing . | . . . . . . . . Highest Corruption 3 | . . . . . . . 3 Average Corruption 1 | . . . . . . . 1 Corruption Purged . | . . . . . . . . Corruption Blocked . | . . . . . . . . Effects 12 | . . . . . . . 12 Message Errors 3 | . . . . . . . 3 Matter Fused 2 | . . . . . . . 2 Heat Flow Errors 1 | . . . . . . . 1 Data Loss (minor) 2 | . . . . . . . 2 Data Loss (major) 1 | . . . . . . . 1 Misfires 1 | . . . . . . . 1 Alerts 2 | . . . . . . . 2 Overload Shots . | . . . . . . . . Overflow Damage 418 | . . . . . . . 418 Projectiles . | . . . . . . . . Explosions 281 | . . . . . . . 281 Melee 137 | . . . . . . . 137 Knockbacks . | . . . . . . . . Impact . | . . . . . . . . Kinetic . | . . . . . . . . Secondary . | . . . . . . . . Self-Inflicted Damage 552 | . . . 19 . 50 41 442 Shots 12 | . . . 1 . 2 1 8 Rammed . | . . . . . . . . Targets Rammed . | . . . . . . . . Kicked . | . . . . . . . . Crushed . | . . . . . . . . Highest Temperature 444 | . . 2 . . 42 221 444 Average Temperature 110 | . . 2 . . 14 48 131 Received Heat Transfer 1758 | . . 75 12 36 126 9 1500 Effects 7 | . . . . . . . 7 Shutdowns 3 | . . . . . . . 3 Interference 3 | . . . . . . . 3 Damage (minor) 1 | . . . . . . . 1 Siege Activations . | . . . . . . . . Martial Activations . | . . . . . . . . Shielding Activations . | . . . . . . . . Robots Disrupted . | . . . . . . . . Combat Hostiles . | . . . . . . . . Robots Corrupted . | . . . . . . . . Combat Hostiles . | . . . . . . . . Parts Fried . | . . . . . . . . Impact Corruptions . | . . . . . . . . Robots Melted 3 | . . . . . . . 3 Combat Hostiles 3 | . . . . . . . 3 Parts Melted 20 | . . . . . . 1 19 Heat Transferred 6684 | . . . . . 185 469 6030 Parts Sabotaged . | . . . . . . . . Parts Stolen . | . . . . . . . . Parts Stripped . | . . . . . . . . Power Chain Reactions 1 | . . . . . . . 1 Alert | -11 -10 -10 -10 -8 -8 -7 -6 ------- Run | Yrd Mat Min Sub Mat Sto Fac Fac Maximum Alert Level 2 | . . . . . 2 . 1 Low Security (%) 86 | 100 100 100 . 100 47 100 91 Level 1 13 | . . . . . 48 . 8 Level 2 . | . . . . . 3 . . Level 3 . | . . . . . . . . Level 4 . | . . . . . . . . Level 5 . | . . . . . . . . High Security . | . . . . . . . . Max Security . | . . . . . . . . Peak Influence 408 | 10 60 56 . 44 408 179 232 Initial 146 | . 2 16 . . 15 146 28 Average 99 | 2 11 22 . 10 203 88 97 Influence Increases 2740 | 25 70 168 21 95 862 396 1103 Destroy 0b10 Robot/C 1440 | . 60 120 20 40 420 240 540 Destroy 0b10 Robot/NC 135 | 25 . 5 . . 25 15 65 Destroy Leader 370 | . 10 30 . 20 116 52 142 Allied During Kill 178 | . . 4 1 . 132 41 . Successful Hack 18 | . . . . 7 . . 11 Disable Machine 261 | . . 9 . . 45 18 189 Destroy Structure 233 | . . . . 13 94 30 96 Partial Spotted 15 | . . . . 15 . . . Lose Combat Pursuer 90 | . . . . . 30 . 60 Influence Decreases 2740 | 20 25 176 63 51 528 706 1171 Entered New Map 363 | . 3 34 25 . 29 232 40 Time Decay 1905 | 20 22 142 38 50 425 344 864 Lost Part 180 | . . . . . . 10 170 Lost Ally 181 | . . . . 1 60 120 . Purge Threat 111 | . . . . . 14 . 97 Squads Dispatched 18 | . . . . 1 1 4 12 Investigation 2 | . . . . . . 1 1 Extermination 6 | . . . . . . 2 4 Reinforcement 6 | . . . . 1 1 1 3 Assault . | . . . . . . . . Garrison 4 | . . . . . . . 4 Intercept . | . . . . . . . . Searches Triggered . | . . . . . . . . Construction Impeded 1 | . . . . . . . 1 Haulers Reinforced 2 | . . . . . . . 2 Active Scanning Responses . | . . . . . . . . Cargo Convoy Interrupts . | . . . . . . . . Stealth | -11 -10 -10 -10 -8 -8 -7 -6 --------- Run | Yrd Mat Min Sub Mat Sto Fac Fac Distress Signals 3 | . . . . 1 1 . 1 Communications Jammed . | . . . . . . . . Distress Signals . | . . . . . . . . Times Spotted 101 | . 5 6 11 6 20 14 39 Peak Tracking Total 6 | . 4 2 6 2 4 4 5 Tactical Retreats 5 | . . . . . 2 . 3 Traps | -11 -10 -10 -10 -8 -8 -7 -6 ------- Run | Yrd Mat Min Sub Mat Sto Fac Fac Traps Triggered 4 | . . . . 1 . . 3 Indirectly . | . . . . . . . . Trap Hack Attempts . | . . . . . . . . Triggered . | . . . . . . . . Disarmed . | . . . . . . . . Reprogrammed . | . . . . . . . . Reused . | . . . . . . . . Traps Extracted . | . . . . . . . . Installed . | . . . . . . . . Triggered . | . . . . . . . . Machines | -11 -10 -10 -10 -8 -8 -7 -6 ---------- Run | Yrd Mat Min Sub Mat Sto Fac Fac Machines Disabled 29 | . . 1 . . 5 2 21 Max in Single Turn 11 | . . . . . 2 2 11 Machines Repaired . | . . . . . . . . Machines Dismantled . | . . . . . . . . Machines Sabotaged . | . . . . . . . . Overloaded Fab Kills . | . . . . . . . . Hacking | -11 -10 -10 -10 -8 -8 -7 -6 --------- Run | Yrd Mat Min Sub Mat Sto Fac Fac Machines Accessed 19 | . . . . 2 6 5 6 Terminals 15 | . . . . 2 5 4 4 Fabricators . | . . . . . . . . Repair Stations 4 | . . . . . 1 1 2 Recycling Units . | . . . . . . . . Scanalyzers . | . . . . . . . . Garrison Access . | . . . . . . . . Total Hacks 36 | . . . . 3 9 7 17 Successful 28 | . . . . 3 7 3 15 Failed 8 | . . . . . 2 4 2 Catastrophic 1 | . . . . . 1 . . Database Lockouts . | . . . . . . . . Manual 6 | . . . . 1 1 . 4 Terminals 21 | . . . . 3 7 6 5 Fabricators . | . . . . . . . . Repair Stations 15 | . . . . . 2 1 12 Recycling Units . | . . . . . . . . Scanalyzers . | . . . . . . . . Garrison Access . | . . . . . . . . Terminal Hacks 14 | . . . . 3 5 3 3 Record 4 | . . . . 1 1 2 . Open Door 2 | . . . . . 2 . . Open DSF 1 | . . . . . . . 1 Branch Access Points 2 | . . . . 1 . . 1 Alert Level 3 | . . . . 1 1 1 . Unreport Threat 2 | . . . . . 1 . 1 Fabricator Hacks . | . . . . . . . . Repair Station Hacks 14 | . . . . . 2 . 12 Scan Component 8 | . . . . . 1 . 7 Repair 6 | . . . . . 1 . 5 Recycling Unit Hacks . | . . . . . . . . Scanalyzer . | . . . . . . . . Garrison Access Hacks . | . . . . . . . . Unauthorized Hacks . | . . . . . . . . Terminals . | . . . . . . . . Fabricators . | . . . . . . . . Repair Stations . | . . . . . . . . Recycling Units . | . . . . . . . . Scanalyzers . | . . . . . . . . Garrison Access . | . . . . . . . . Data Cores Recovered . | . . . . . . . . Used . | . . . . . . . . Hacking Detections 10 | . . . . 1 2 3 4 Full Trace Events 2 | . . . . . . 1 1 Feedback Events 1 | . . . . . . . 1 Corruption 1 | . . . . . . . 1 Feedback Blocked . | . . . . . . . . Robot Schematics Acquired . | . . . . . . . . Robots Built . | . . . . . . . . Authchips . | . . . . . . . . Time . | . . . . . . . . Total Robot Build Rating . | . . . . . . . . Part Schematics Acquired . | . . . . . . . . Parts Built . | . . . . . . . . Authchips . | . . . . . . . . Time . | . . . . . . . . Total Part Build Rating . | . . . . . . . . Part Studies Acquired . | . . . . . . . . Parts Repaired 6 | . . . . . 1 . 5 Time 238 | . . . . . 22 . 216 Parts Recycled . | . . . . . . . . Recycled Matter . | . . . . . . . . Retrieved Matter . | . . . . . . . . Retrieved Components . | . . . . . . . . Parts Scanalyzed . | . . . . . . . . Part Schematics Acquired . | . . . . . . . . Parts Damaged . | . . . . . . . . Bothacking | -11 -10 -10 -10 -8 -8 -7 -6 ------------ Run | Yrd Mat Min Sub Mat Sto Fac Fac Used RIF Installer . | . . . . . . . . Robots Hacked . | . . . . . . . . Non-combat . | . . . . . . . . Combat . | . . . . . . . . Robot Hacks Applied . | . . . . . . . . Relay Couplers Released . | . . . . . . . . Fabnet Peak Effective % . | . . . . . . . . Robots Rewired . | . . . . . . . . Allies Hacked . | . . . . . . . . Hacks Repelled . | . . . . . . . . Allies | -11 -10 -10 -10 -8 -8 -7 -6 -------- Run | Yrd Mat Min Sub Mat Sto Fac Fac Total Allies 13 | . . 3 . . 10 . . Largest Group 10 | . . 3 2 1 10 7 . Highest-Rated Group 173 | . . 73 46 31 173 125 . Highest-Rated Ally 31 | . . 31 31 31 29 29 . Total Orders . | . . . . . . . . Ally Attacks 186 | . . 18 14 2 107 45 . Total Damage 2253 | . . 299 218 . 1226 510 . Kills 25 | . . 1 3 . 16 5 . Allies Corrupted . | . . . . . . . . Allies Melted . | . . . . . . . . Intel | -11 -10 -10 -10 -8 -8 -7 -6 ------- Run | Yrd Mat Min Sub Mat Sto Fac Fac Active Infowar (turns) 4971 | 27 171 415 315 255 939 713 2136 Optics 1694 | . . . . . . . 1694 Sensors 4789 | . 130 415 315 255 939 713 2022 Terrain 2364 | . . . . . 356 713 1295 Structural 503 | . . . . . . . 503 Seismic 375 | 27 41 . . 243 64 . . Robot Analysis Total . | . . . . . . . . Derelict Logs Recovered 3 | . . 2 1 . . . . Drone Launches 2 | . . . . . 2 . . Drone Recoveries 1 | . . . . . 1 . . Exploration | -11 -10 -10 -10 -8 -8 -7 -6 ------------- Run | Yrd Mat Min Sub Mat Sto Fac Fac Turns Passed 5079 | 135 171 415 315 255 939 713 2136 Spaces Moved 2513 | 57 125 279 237 164 500 373 778 Core 50 | 21 . . . . . . 29 Treads 1198 | . . . . . 221 367 610 Legs 1259 | 36 125 279 237 164 279 . 139 Wheels . | . . . . . . . . Hover 1 | . . . . . . 1 . Flight 5 | . . . . . . 5 . Fastest Speed 50 | 50 120 120 120 120 120 155 50 Average Speed 157 | 127 120 120 120 120 137 161 208 Slowest Speed 1600 | 150 120 120 120 120 240 425 1600 Overloaded Moves . | . . . . . . . . Propulsion Burnouts . | . . . . . . . . Robots Hopped . | . . . . . . . . Potential Cave-ins 3 | . . . . . 1 . 2 Cave-ins Triggered . | . . . . . . . . Exploration Rate (%) 29 | 4 14 72 17 22 74 11 22 Regions Visited 7 Branch Regions 3 Pre-discovered Areas 2 | . . 2 . . . . . Known Exits Taken 1 | . . . . 1 . . . Unknown Exits Taken 6 | 1 1 1 1 . 1 1 . Scrap Searched 7 | . . 2 5 . . . . Spaces Dug 18 | . . . . 1 11 2 4 Terrain Destroyed 271 | . . . 6 12 118 27 108 Melee 18 | . . . . 1 11 2 4 Projectile 1 | . . . . . . 1 . AOE 252 | . . . 6 11 107 24 104 Terrain Rammed . | . . . . . . . . Walls Destroyed . | . . . . . . . . Machines Disabled . | . . . . . . . . Actions | -11 -10 -10 -10 -8 -8 -7 -6 --------- Run | Yrd Mat Min Sub Mat Sto Fac Fac Total 3305 | 89 137 324 258 196 715 460 1126 Wait 388 | . 4 15 14 7 142 11 195 Move 2506 | 56 124 278 236 163 499 372 778 Hop . | . . . . . . . . Pick Up 89 | 11 4 4 1 5 19 20 25 Fast Attach 15 | . . . . . 1 1 13 Attach 37 | 7 . . . 4 3 11 12 Detach 1 | . . . . . . 1 . Swap 31 | . 1 2 1 3 7 7 10 Drop 61 | . . 6 1 1 17 21 15 Fire 150 | 15 4 19 5 12 14 14 67 Melee 27 | . . . . 1 13 2 11 Ram . | . . . . . . . . Kick . | . . . . . . . . Crush . | . . . . . . . . Escape Stasis . | . . . . . . . . Rewire . | . . . . . . . . Trap . | . . . . . . . . Miscellaneous . | . . . . . . . . Route ------- -11/Scrapyard -10/Materials -10/Mines -10/Subcaves -8/Materials -8/Storage -7/Factory -6/Factory (discovered 2 exits: Low x2) History --------- Turn | Location | Event 13 | -11/Scrapyard | Discovered new exit (range 15) 136 | -11/Scrapyard | Entered Materials 144 | -10/Materials | Discovered new exit (range 16) 307 | -10/Materials | Entered Mines 312 | -10/Mines | Build established: Mutant 403 | -10/Mines | Learned location of Storage (-8) 413 | -10/Mines | Received a Mining Laser from a helpful Derelict 647 | -10/Mines | Discovered new exit (range 14) 722 | -10/Mines | Entered Subcaves 722 | -10/Subcaves | Accompanied by 2 allies 727 | -10/Subcaves | Led the pair of lost Derelicts to an unsafe place 754 | -10/Subcaves | Learned Materials emergency access door positions 799 | -10/Subcaves | Shifting Twisted Machinery released Sub. Laser 810 | -10/Subcaves | Shifting Twisted Machinery released Flamer 881 | -10/Subcaves | Ambushed by swarm of Subdwellers 889 | -10/Subcaves | Ambushed by Subdwellers from Twisted Machinery 889 | -10/Subcaves | Ambushed by Subdwellers from Twisted Machinery 971 | -10/Subcaves | Discovered new exit (range 5) 1037 | -10/Subcaves | Entered Materials 1037 | -8/Materials | Accompanied by 1 ally 1037 | -8/Materials | Evolved 4 slots: Propulsion x1, Utility x2, Weapon x1 1245 | -8/Materials | Identified exit to Storage 1292 | -8/Materials | Entered Storage 1453 | -8/Storage | Build established: Scavenger-Mutant 1708 | -8/Storage | Assisted by bots powering up and referring to "LRC-V3" 1873 | -8/Storage | Repaired Mak. Axe 2022 | -8/Storage | Discovered new exit (range 16) 2231 | -8/Storage | Entered Factory 2231 | -7/Factory | Accompanied by 7 allies 2231 | -7/Factory | Evolved 2 slots: Utility x1, Weapon x1 2518 | -7/Factory | Build established: Scavenger-Assassin 2875 | -7/Factory | Lost 4 allies 2924 | -7/Factory | Discovered new exit (range 15) 2944 | -7/Factory | Entered another Factory area 2944 | -6/Factory | Evolved 2 slots: Utility x2 3065 | -6/Factory | Identified exit to Lower Caves 3176 | -6/Factory | Garrison activated, responded to threat 3235 | -6/Factory | Lost 4 parts (1p2u1w) 3315 | -6/Factory | Garrison activated, responded to threat 3404 | -6/Factory | Repaired Terrain Scanner? 3793 | -6/Factory | Repaired Adv. Treads 3838 | -6/Factory | Repaired Gatling Laser 3878 | -6/Factory | Repaired Imp. Sensor Array 3949 | -6/Factory | Repaired Imp. Spread Laser 4418 | -6/Factory | Build established: Hacker-Skirmisher 4653 | -6/Factory | Lost 6 parts (2n1u3w) 4927 | -6/Factory | Build established: Hacker-Assassin 5021 | -6/Factory | Core integrity fell below 50% 5041 | -6/Factory | Lost 8 parts (1p1n2u4w) 5053 | -6/Factory | Core integrity fell below 20% 5080 | -6/Factory | Destroyed by G-50 Soldier with Heavy Laser Last Messages --------------- 04999_ G-50 Soldier misfires. 05005_ Imp. Sensor Array destroyed. 05009_ K-01 Serf collects debris. 05010_ Terrain Scanner destroyed. 05012_ Critical hit (Burn: +37). 05013_ K-01 Serf collects debris. 05018_ Critical hit (Burn: +37). 05048_ OQD MR4VUK5VWW PQBM566%CHJ26T 05056_ Dropped Huge Storage Unit. 05056_ Carbon-fiber Leg crushed and broken. 05056_ Shock Rifle crushed and broken. 05056_ Imp. Heat Sink crushed and broken. 05056_ Target Analyzer crushed and broken. 05059_ Acquired Adv. Heat Sink. 05061_ Acquired Adv. Terrain Scan Processor. 05065_ Acquired Imp. Deuterium Engine. 05071_ G-50 Soldier IFF system glitched. 05074_ Critical hit (Burn: +37). 05076_ Imp. Deuterium Engine destroyed. 05077_ R-10 Processor collects Remote Datajack. Map ----- +----------------------------------------------------+ | ?????????????????????????????????????????????????? | | ?????????????????????????????????????????????????? | | ?????????????????????????????????????????????????? | | ?????????????????????????????????????????????????? | | ?????????????????????????????????????????????????? | | ???????????????????????????????????????????????? | | ?????????????????????????????????????????????????? | | #????????????????????????+#??????????????????????? | | ????????????????????????? ??????????????????????? | | ??#?????????????????????? ??????????????????????? | | #???????????????????????? ??????????????????????? | | #?# ????????????????????# ??????????????????????? | | #???????????????????????# ??????????????????????? | | ????????????????????????# #??????????????????????? | | #?? ????????????????????# #??????????????????????? | | ### ????????????????????# #??????????????????????? | | + ???????????????????# #??????????????????????? | | ####?#??????????????????+ #??????????????????????? | | # ? ? ?????????????????# #????? ????????????????? | | # ? ????????????????# #?? ? ?????????????????? | | # ??????????????????#[#????#?????????????????? | | # ??? ??????????????#g#??????????????????????? | | # ? ???#??????????? #*#??????????????????????? | | #? ? ##????? ??????# #??????????????????????? | | # """"""? #? ????????"??# #??????????????????????? | | # """"""" ## ??????????#@#??????????????????????? | | # """"""" ## ?""?"?"????#]#??????????????????????? | | # """"""" #? ? ???????#]#???????#########??????? | | # ##? "?""??"???#!#?#???? ?????? | | # """"""" ##? ??# ##???? ????? | | # """"""" ## ?""""?""?"?#g##?#?? ?????? | | # """"""" ## ? #g##?? ????????? | | # """"""" ## """"""""" # #?#? ???????????? | | # ## #R###? ##????????????? | | #####+############+###### #### # ???????????? | | % #? ??????????? | | % ^ + ?? ?????????? | | ^ # ? ?????????? | | "" # ??????????? | | " "" # """ "???????? | | """" ############+#########?""" ????????? | | ######### ####? ""? ????????? | | """ " #########! #?###?####????????? | | """ T ######### #####?#?###???????? | | """ " + ""###########???????? | | ######### """" ""##?#######????????? | | ######### """" T"####?#####????????? | | ############# ######### """" ""##??#### ? ??????? | | ?? ###### # ## """" ""######## ?????????? | | ? ? ? ###### # ## #######? " ???????? | +----------------------------------------------------+ Best States ------------- Heat Dissipation 79 Energy Generation 18 Energy Capacity 300 Matter Stores 300 Matter Capacity 300 Sight Range 22 Robot Scan Range 15 Terrain Scan Range 20 Terrain Scan Density 210 Armor Coverage 150 Resistance: KI 20 Resistance: TH 20 Resistance: EX 20 Resistance: EM 20 Resistance: I 20 Resistance: S 20 Resistance: P 20 Evasion (%) 55 Recoil Reduction 3 Offensive Hacking 20 Item Schematics ----------------- None Robot Schematics ------------------ None Fabricated ------------ Nothing Repaired ---------- Mak. Axe | 61% | -8/Storage Terrain Scanner | 15% | -6/Factory Adv. Treads | 31% | -6/Factory Gatling Laser | 69% | -6/Factory Imp. Sensor Array | 63% | -6/Factory Imp. Spread Laser | 58% | -6/Factory Studied --------- None Alien Tech Used ----------------- None Achievements -------------- Everything Is Under Control Omniscient Cartographer Challenges ------------ None Game ------ Seed AssaultCobblerVibroblade Manual? 0 Play Time 01:29:28 Cumulative 18.0 hours Start 2025.10.24 @ 19:51:20 End 2025.10.24 @ 22:58:59 Sessions 1 Manual Loads 0 Difficulty Adventurer Special Mode None Game No. 9 Rogue 0 Adventurer 9 Explorer 0 Win Type - Total 0 Types 0/0/0/0/0/0/0/0/0/0 Lore% 4 Gallery% 16 Achievement% 13 Wizard Run 0 Options --------- Layout 1 ASCII 0 Keyboard 0 Movement Mouse Keybinds 1 Fullscreen 2 Font 32/SmallcapsGlow Map View 50x35 Zoom Use 0% Tactical HUD 1 Map Filters NONE Filters NONE Steam 1 RUN: 82813fd1-c2ea-463d-a077-e26d49235dfa